[Event "Turkish Youth Teams U18 2024"]
[Site "Karaman"]
[Date "2024.04.23"]
[Round "5"]
[White "Orhon, Bora"]
[Black "Basdar, Atakan"]
[Result "1-0"]
[ECO "C11"]
[WhiteElo "1997"]
[BlackElo "1808"]
[Annotator "TA"]
[PlyCount "85"]
[EventDate "2024.04.21"]
[EventType "team-tourn"]
[EventCountry "TUR"]
[SourceTitle "playchess.com"]
[Source "ChessBase"]
[SourceQuality "1"]
[TimeControl "5400+30"]

{[%evp 13,85,4,41,50,56,62,92,-32,-14,-22,-23,-26,-18,-18,-26,-39,-22,-126,-100,-141,-136,-130,-129,-145,-81,-79,-85,-87,-52,-50,-55,-88,-89,-85,-78,-87,-72,-77,-5,-12,0,0,0,0,0,-15,-14,-20,20,0,0,0,149,157,150,152,157,148,304,285,309,313,312,310,313,216,229,0,340,336,29982,29983,29983,29984]} 1. e4 {[%emt 0:01:00]} e6 {[%emt 0:01:00]} 2. d4 {[%emt 0:00:30]} d5 {[%emt 0:00:30]} 3. Nc3 {[%emt 0:02:30]} Nf6 {[%emt 0:00:30]} 4. e5 {[%emt 0:00:30]} Nfd7 {[%emt 0:00:00]} 5. Nce2 {[%emt 0:00:00]} c5 {[%emt 0:00:00]} 6. c3 {[%emt 0:00:00]} Nc6 {[%emt 0:00:00]} 7. Nf3 {[%emt 0:00:00]} f6 {[%emt 0:02:00][%cal Bf7f6,Bf6e5][%mdl 32]} 8. Nf4 {[%emt 0:07:00]} Qe7 {[%emt 0:01:30][%cal Rf6e5]} 9. Bd3 {[%emt 0:16:30] 0-0 is the strong threat.} fxe5 {[%emt 0:08:30] [#]} 10. Ng6 {[%emt 0:07:30]} hxg6 $15 {[%emt 0:00:30]} 11. Bxg6+ {[%emt 0:00:30]} Kd8 {[%emt 0:00:30]} 12. Bg5 {[%emt 0:01:30]} Nf6 {[%emt 0:00:00] Hoping for ...exd4.} 13. dxe5 {[%emt 0:02:30][%cal Oh2h4] [#]} Kc7 $1 {[%emt 0:02:00][%cal Oe7d8]} 14. Qd2 {[%emt 0:07:30][%cal Oh2h4]} (14. exf6 gxf6 15. Bf4+ e5 $17) (14. h4 Qd8) 14... Qd8 {[%emt 0:02:30]} 15. exf6 {[%emt 0:13:30]} (15. O-O-O $11) 15... gxf6 $17 {[%emt 0:00:00]} 16. Bf4+ {[%emt 0:00:30]} e5 {[%emt 0:07:00]} 17. Bg3 {[%emt 0:00:00]} Be6 {[%emt 0:01:30]} 18. Nh4 {[%emt 0:04:00]} Bh6 {[%emt 0:10:30]} ({Black should play} 18... Qd7 {...f5 would now be deadly.} 19. Bc2 Rd8) 19. Qc2 {[%emt 0:00:30] Dodges f5} Ne7 {[%emt 0:02:30]} 20. O-O {[%emt 0:03:30]} Bf4 {[%emt 0:15:30]} 21. c4 $1 {[%emt 0:14:49]} d4 {[%emt 0:08:30][%cal Of6f5]} 22. Bxf4 {[%emt 0:00:52]} exf4 {[%emt 0:00:30]} 23. Rfe1 {[%emt 0:04:28]} Qd7 {[%emt 0:00:30]} 24. Nf3 {[%emt 0:00:30]} Rag8 $1 {[%emt 0:00:30]} 25. Qe4 {[%emt 0:00:29]} Rxg6 {[%emt 0:09:30]} (25... Bxc4 $6 26. Qxf4+ (26. Qxe7 Rxg6 27. Qxc5+ Kb8 $17) 26... Kb6 27. Qxf6+ Qc6 28. Qxc6+ Nxc6 29. Be4 $16) (25... Nxg6 $17 26. Qxe6 Qg7) 26. Qxe6 $11 {[%emt 0:00:30]} Qxe6 {[%emt 0:00:30]} 27. Rxe6 {[%emt 0:00:00]} Nc6 {[%emt 0:03:30]} 28. Rae1 {[%emt 0:01:04]} Rhg8 {[%emt 0:00:30]} 29. g3 {[%emt 0:00:54]} fxg3 {[%emt 0:00:30]} 30. fxg3 {[%emt 0:00:43]} a6 {[%emt 0:06:13]} 31. b3 {[%emt 0:03:27]} f5 {[%emt 0:03:38]} 32. Kf2 {[%emt 0:01:46]} Kd7 {[%emt 0:03:38] [#]} (32... Rxe6 $11 33. Rxe6 Nb4) 33. Rxg6 $1 $16 {[%emt 0:01:20]} Rxg6 {[%emt 0:00:30] [#]} 34. Ne5+ $1 {[%emt 0:00:00]} (34. Re5 b6 $16) 34... Nxe5 {[%emt 0:00:19]} 35. Rxe5 {[%emt 0:00:00][%mdl 4096] Endgame. KR-KR} Rh6 $2 {[%emt 0:00:59]} (35... f4 $16) 36. h4 $18 {[%emt 0:01:17]} (36. Rxc5 Rxh2+ 37. Kf3 Ke6 $11) 36... f4 {[%emt 0:00:30]} 37. Rxc5 {[%emt 0:00:30]} fxg3+ {[%emt 0:00:30]} 38. Kxg3 {[%emt 0:00:30]} Rg6+ {[%emt 0:00:30]} 39. Kf3 {[%emt 0:00:30]} Rf6+ {[%emt 0:04:45]} 40. Kg3 {[%emt 0:01:06]} (40. Ke2 $142) 40... Rg6+ $1 {[%emt 0:00:43]} 41. Rg5 {[%emt 0:01:26]} d3 $2 {[%emt 0:00:11]} (41... Rxg5+ $2 42. hxg5 Ke6 43. Kf4 $18) (41... Rh6 $18 42. Rd5+ Kc6 43. Rxd4 Kc5) 42. Rxg6 {[%emt 0:00:56]} d2 {[%emt 0:00:30]} 43. Rg5 {[%emt 0:00:00] Weighted Error Value: White=0.25 (precise) /Black=0.40.  Mistake:       	White=3     	Black=5      Inaccurate:     	White=3     	Black=3      OK:         	White=8     	Black=9      Best:        	White=4     	Black=7      Strong:       	White=3     	Black=2} ({And not} 43. Rg7+ Ke6 44. Rg6+ (44. Rxb7 $2 {too greedy.} d1=Q $19) 44... Ke7 45. Rg7+ Ke8 46. Rg8+ (46. Rxb7 $2 {is the wrong capture.} d1=Q $19) (46. Rd7 $2 Kxd7 47. b4 d1=Q $19) 46... Ke7 47. Rg7+ (47. Rd8 $2 Kxd8 48. h5 d1=Q $19) 47... Ke6 48. Rg6+ (48. Rxb7 $2 d1=Q $19) 48... Ke7 49. Rg7+ $11) 1-0

[Event "Turkish Youth Teams U18 2024"]
[Site "Karaman"]
[Date "2024.04.23"]
[Round "5"]
[White "Yildiz, Elif Zeren"]
[Black "Buyuk, Ecrin Efsa"]
[Result "0-1"]
[ECO "B15"]
[WhiteElo "1926"]
[BlackElo "1949"]
[Annotator "TA"]
[PlyCount "112"]
[EventDate "2024.04.21"]
[EventType "team-tourn"]
[EventCountry "TUR"]
[SourceTitle "playchess.com"]
[Source "ChessBase"]
[SourceQuality "1"]
[TimeControl "5400+30"]

{[%evp 18,112,41,22,43,-8,25,0,5,0,0,0,0,-7,-24,-50,-32,-50,-9,-30,-25,-79,-72,-80,-71,-96,-97,-135,-91,-97,-86,-89,-35,-25,0,0,0,0,0,0,0,0,0,-152,-22,-155,-152,-161,-160,-129,-25,-1095,-1108,-624,-175,-187,-176,-135,-16,-275,-271,-264,-286,-357,-357,-357,-281,-279,-309,-311,-305,-602,-425,-29991,-5868,-4867,-4670,-1197,0,-1009,0,-570,0,-4670,-4670,-4132,-2226,-1930,-1922,-1565,0,-8,0,-982,-936,-29982,-29983]} 1. e4 {[%emt 0:01:00]} c6 {[%emt 0:01:00]} 2. d4 {[%emt 0:00:30]} d5 {[%emt 0:00:30]} 3. Nc3 {[%emt 0:00:00]} dxe4 {[%emt 0:00:00]} 4. Nxe4 {[%emt 0:00:00]} Nf6 {[%emt 0:00:00]} 5. Nxf6+ {[%emt 0:00:30]} exf6 {[%emt 0:00:00]} 6. c3 {[%emt 0:00:30]} Bd6 {[%emt 0:00:00]} 7. Bd3 {[%emt 0:00:00]} O-O {[%emt 0:00:00]} 8. Qc2 {[%emt 0:00:00]} Re8+ {[%emt 0:00:00]} 9. Ne2 {[%emt 0:00:00]} h6 {[%emt 0:01:30]} 10. Be3 {[%emt 0:00:00]} Be6 {[%emt 0:00:00]} 11. c4 {[%emt 0:01:30]} (11. h3 $14) 11... Nd7 {[%emt 0:02:00]} 12. O-O-O {[%emt 0:06:30]} Rc8 {[%emt 0:05:30] The position is equal.} 13. Kb1 {[%emt 0:05:30]} b5 {[%emt 0:10:30]} 14. c5 {[%emt 0:01:30]} Bb8 {[%emt 0:09:30]} 15. h4 {[%emt 0:06:30]} Nf8 {[%emt 0:04:30]} 16. Qd2 {[%emt 0:06:30]} f5 {[%emt 0:08:30]} 17. Qc2 {[%emt 0:05:30]} Qd7 {[%emt 0:03:30]} 18. g3 {[%emt 0:00:30]} Ng6 {[%emt 0:03:30]} 19. Rhg1 {[%emt 0:08:30]} (19. d5 $11 {keeps the balance.} Qxd5 (19... cxd5 20. Nd4 $16) 20. b3) 19... Ne7 $17 {[%emt 0:03:30]} 20. Bd2 {[%emt 0:02:30]} h5 {[%emt 0:05:30]} 21. Bf4 {[%emt 0:08:30]} Nd5 {[%emt 0:01:30]} 22. Bxb8 {[%emt 0:04:30]} Rxb8 {[%emt 0:00:30]} 23. Qd2 {[%emt 0:00:00] [#] Repels Nb4} a5 $1 {[%emt 0:04:30] aiming for ...Nb4.} 24. Ka1 {[%emt 0:01:00]} Nb4 {[%emt 0:07:30]} (24... g6 $17) 25. Bb1 $1 $15 {[%emt 0:00:30]} Bxa2 {[%emt 0:05:30]} 26. Bxa2 {[%emt 0:04:30]} Nxa2 {[%emt 0:01:30]} 27. Kxa2 {[%emt 0:00:30][%cal Oe2f4] Strongly threatening Nf4!} Qe6+ {[%emt 0:00:00]} 28. d5 {[%emt 0:00:30]} Qxe2 {[%emt 0:00:00]} 29. dxc6 {[%emt 0:02:30]} (29. Qxe2 Rxe2 30. dxc6 Rc8) 29... Qc4+ {[%emt 0:00:30]} 30. Ka1 $2 {[%emt 0:01:30]} (30. Kb1 $11 Rbc8 (30... Qxc5 31. Rc1 $16) 31. Qd5) 30... Qa4+ $17 {[%emt 0:19:12]} (30... Qxc5 31. Rc1 Qb6 32. c7 $16) 31. Kb1 {[%emt 0:00:30] Rge1 would now be deadly.} b4 $1 {[%emt 0:00:00][%cal Ob4b3] White must now prevent ...b3!} 32. Qf4 {[%emt 0:05:30]} Qxc6 {[%emt 0:00:26]} 33. Qxf5 {[%emt 0:00:30][%cal Od1d7]} b3 {[%emt 0:01:08]} ({Black should play} 33... Rbd8 $17 34. Rxd8 Rxd8) 34. Rd4 $2 {[%emt 0:05:30][%mdl 8192]} (34. Rd7 $11 Rf8 35. g4) 34... Rbd8 $19 {[%emt 0:01:17]} 35. Rf4 {[%emt 0:01:30]} Rf8 $2 {[%emt 0:00:47] Active counter play!} (35... Re7 36. Rc4 Re2) 36. Rc1 {[%emt 0:02:30][%cal Of5e4]} Rd5 $1 {[%emt 0:01:07]} 37. Qe4 {[%emt 0:01:30]} Re8 {[%emt 0:00:02]} (37... Rc8 $1 $17 {[%cal Oc6c5] Hoping for ...Qxc5!} 38. Qf3 Rxc5 39. Rxc5 Qxc5 40. Qxb3 Qe7) 38. Qc4 $2 {[%emt 0:00:30][%mdl 8192]} (38. Qa4 $11 {and White is okay.} Rc8 39. Qxb3 Qg6+ 40. Ka2 Rdxc5 41. Re1) 38... Rb8 {[%emt 0:01:03]} 39. Qa4 {[%emt 0:02:23]} Rb5 {[%emt 0:02:18]} 40. Rfc4 {[%emt 0:00:43]} Qg6+ {[%emt 0:00:30]} (40... Rdxc5 $2 41. Rxc5 Qg6+ 42. Ka1 $18) 41. Ka1 {[%emt 0:00:30] [#]} Rb4 {[%emt 0:00:30][%mdl 512]} 42. Rxb4 {[%emt 0:00:30]} axb4 {[%emt 0:00:30]} 43. Qxb3 {[%emt 0:00:30][%mdl 4096] Endgame. KQR-KQR} (43. Qa8+ $2 Kh7 44. Re1 Qe4 $19 (44... Rxc5 $2 45. f3 $19)) 43... Rd8 {[%emt 0:00:30]} 44. Qa4 {[%emt 0:02:16] Prevents Ra8.} (44. Qxb4 Ra8+ $19) (44. Qc2 Qe6 45. b3 Ra8+ 46. Kb1) 44... b3 {[%emt 0:00:22]} 45. Qa5 {[%emt 0:02:56]} (45. c6 Qc2) (45. Qxb3 $19 Ra8+ 46. Qa2) 45... Qd3 {[%emt 0:00:34]} (45... Rd4 $142 46. Qa2 bxa2 47. c6 Rc4 (47... Qh6 $2 48. f4 $19) 48. Rg1 Qc2 (48... Rxc6 49. f3 Qc2 50. Re1 Rb6 51. Re8+ Kh7 52. Rh8+ Kxh8 53. Kxa2 Qxb2#) 49. c7 Rxc7 50. Rc1 Qxc1+ 51. Kxa2 Ra7+ 52. Kb3 Rb7+ 53. Ka4 Qa1#) 46. c6 {[%emt 0:00:30] [#]} Qd1 $3 {[%emt 0:01:31][%mdl 512]} 47. Kb1 {[%emt 0:01:07]} Qd3+ {[%emt 0:00:30]} 48. Ka1 {[%emt 0:00:08]} Qd1 {[%emt 0:00:31]} 49. Kb1 {[%emt 0:00:30][%cal Oa5f5]} Qd3+ {[%emt 0:00:30]} (49... Qd4 $142 50. c7 (50. Qxh5 $2 Qe4+) 50... Qd3+ 51. Ka1 Rc8) 50. Ka1 {[%emt 0:00:00]} Rd5 {[%emt 0:00:37][%cal Rd5a5]} 51. Qa8+ {[%emt 0:00:51] [#]} Kh7 $1 {[%emt 0:00:30][%cal Od3c2]} 52. c7 {[%emt 0:00:00] [#]} Qd2 $1 {[%emt 0:00:00][%csl LRc1,LRf2]} 53. Kb1 {[%emt 0:02:01]} Qd3+ $2 $40 {[%emt 0:00:05][%mdl 128] White needs to defend precisely.} ({Better is} 53... Ra5 $1 $19 {( -> ...Qd3+)} 54. Qh8+ Kxh8 55. c8=Q+ Kh7) 54. Ka1 $11 {[%emt 0:00:00]} Qd2 $2 {[%emt 0:00:37][%mdl 8192]} (54... Qf5 $11 55. Qg8+ (55. c8=R $2 {leads to mate.} Ra5+) (55. Qxd5 Qxd5 56. Rf1 Qc6 57. Rd1 Qxc7 58. f4 Qa7+ 59. Kb1 Qf2 60. Ka1 Qxg3 61. f5 Qxh4 62. Rf1 Qa4+ 63. Kb1 Qe4+ 64. Ka1 h4 65. Rg1 h3 66. f6 g5 67. Rd1 h2 68. Rf1 h1=Q 69. Rxh1+ Qxh1#) 55... Kxg8 56. c8=Q+ Kh7 57. Qxf5+ Rxf5) 55. Kb1 $19 {[%emt 0:00:00]} (55. c8=R {gets mated.} Ra5+ 56. Kb1 Qd3+) 55... Ra5 $1 {[%emt 0:01:16]} 56. Qe4+ {[%emt 0:00:32]} f5 {[%emt 0:00:02] Weighted Error Value: White=0.70/Black=0.82.  Loses game:     	White=2     	---        Mistake:       	White=5     	Black=3      Inaccurate:     	White=4     	Black=3      OK:         	White=9     	Black=13     Best:        	White=6     	Black=5      Strong:       	White=1     	Black=2      Brilliant:      	---       	Black=1} 0-1

[Event "Turkish Youth Teams U18 2024"]
[Site "Karaman"]
[Date "2024.04.23"]
[Round "5"]
[White "Yildiz, Tunahan"]
[Black "Yalcinkaya, Efe"]
[Result "1/2-1/2"]
[ECO "A57"]
[WhiteElo "1881"]
[BlackElo "2033"]
[Annotator "TA"]
[PlyCount "128"]
[EventDate "2024.04.21"]
[EventType "team-tourn"]
[EventCountry "TUR"]
[SourceTitle "playchess.com"]
[Source "ChessBase"]
[SourceQuality "1"]
[TimeControl "5400+30"]

{[%evp 17,128,27,50,-17,-7,-3,39,33,41,35,33,33,55,62,77,63,76,84,98,51,121,54,136,141,130,83,134,104,229,200,175,155,242,248,253,206,206,228,375,372,499,484,837,477,489,443,455,464,518,520,478,287,289,281,271,271,286,314,281,269,521,510,582,565,525,317,452,390,604,527,579,568,665,677,688,634,850,783,622,101,101,101,130,101,101,101,101,101,101,101,101,101,101,101,130,130,130,130,130,130,130,130,130,130,130,130,130,130,130,0,0,0,0]} 1. d4 {[%emt 0:01:00]} Nf6 {[%emt 0:01:00]} 2. c4 {[%emt 0:00:30]} c5 {[%emt 0:00:30]} 3. d5 {[%emt 0:00:30]} b5 {[%emt 0:00:00]} 4. Qc2 {[%emt 0:00:00]} bxc4 {[%emt 0:00:00]} 5. e4 {[%emt 0:00:00]} d6 {[%emt 0:00:00]} 6. Bxc4 {[%emt 0:00:00]} g6 {[%emt 0:00:00]} 7. h3 {[%emt 0:01:00]} Bg7 {[%emt 0:00:00]} 8. Nf3 {[%emt 0:00:30]} O-O {[%emt 0:01:00]} 9. O-O {[%emt 0:00:30]} Nbd7 {[%emt 0:00:30]} 10. Bf4 {[%emt 0:23:30]} (10. Nc3 $14) 10... Rb8 $11 {[%emt 0:11:30][%cal Ob8b2]} 11. Nc3 {[%emt 0:12:30]} Qb6 {[%emt 0:03:30]} 12. b3 {[%emt 0:06:30] White is slightly better.} Ba6 {[%emt 0:03:30]} 13. Rab1 {[%emt 0:05:30]} Nh5 {[%emt 0:08:30]} 14. Bd2 {[%emt 0:02:30]} Qb7 {[%emt 0:08:30]} 15. a4 {[%emt 0:06:30]} Nb6 {[%emt 0:04:30]} 16. Nb5 {[%emt 0:07:30]} Nxc4 {[%emt 0:14:30]} 17. bxc4 {[%emt 0:00:30][%cal Ob5d6] Threatens to win with Nxd6!} Qd7 {[%emt 0:00:30]} 18. Rb3 {[%emt 0:09:30]} (18. Rfe1 $16) 18... Bxb5 {[%emt 0:05:30]} (18... Bb7 $14) 19. axb5 $16 {[%emt 0:00:30]} (19. Rxb5 a6 20. Rbb1 e6) 19... Rb7 {[%emt 0:01:30]} (19... a6 $1 $14) 20. g4 {[%emt 0:07:52]} Nf6 {[%emt 0:00:30][%cal Oa7a6]} 21. e5 {[%emt 0:00:27]} ({White should play} 21. Re1) 21... Ne8 {[%emt 0:04:30]} (21... Nxg4 $142 22. hxg4 Qxg4+ 23. Kh2 e6) 22. Re1 $36 {[%emt 0:00:21][%mdl 2048] White is on the roll. White is more active.} e6 {[%emt 0:09:30]} (22... Nc7 $16 {might work better.}) 23. dxe6 {[%emt 0:03:55]} fxe6 {[%emt 0:01:30]} 24. exd6 {[%emt 0:02:00]} Qxd6 {[%emt 0:00:30]} (24... Nxd6 $16 {was worth a try.} 25. Rd3 a6) 25. Rd3 $18 {[%emt 0:02:43]} Qb6 {[%emt 0:00:30]} 26. Ne5 {[%emt 0:02:50] Inhibits Rbf7.} Bxe5 {[%emt 0:05:25]} 27. Rxe5 {[%emt 0:00:02] Hoping for Be3.} Rbf7 {[%emt 0:00:31]} (27... a6 $142 28. Bh6 Ng7) 28. Be3 {[%emt 0:00:30]} Rc7 {[%emt 0:01:52]} 29. Qd2 {[%emt 0:02:01]} Nf6 {[%emt 0:02:25]} (29... Rc8 $142 30. Bg5 (30. Rd7 Nf6 $18) 30... Ng7) 30. Rd8 {[%emt 0:01:41]} Rcf7 {[%emt 0:02:19][%cal Bc7f7,Bf7f8,Bf8c8][%mdl 32]} 31. Rxf8+ {[%emt 0:01:06]} (31. Bxc5 $2 Rxd8 (31... Qxd8 $2 32. Qxd8 Rxd8 33. Rxe6 $19) 32. Qe2 Qc7 $19) 31... Rxf8 {[%emt 0:00:04]} 32. Bxc5 {[%emt 0:00:03]} (32. Rxc5 Ne4 33. Qd7 Nxc5 $11) 32... Ne4 {[%emt 0:00:09]} 33. Rxe4 {[%emt 0:01:00]} (33. Bxb6 Nxd2 34. Re2 (34. Bxa7 $2 Nf3+ 35. Kg2 Nxe5 $19) 34... Nf3+ (34... Nxc4 $2 35. Bxa7 Kf7 36. b6 $18) 35. Kg2 axb6 $17) 33... Qxc5 {[%emt 0:00:04]} 34. Qe3 {[%emt 0:00:33]} (34. Rxe6 Qxc4 35. Re5 Qc7 $18) 34... Qxe3 {[%emt 0:00:30]} 35. Rxe3 {[%emt 0:00:30][%cal Oe3a3][%mdl 4096] Endgame. Black must now prevent Ra3! KR-KR} Rc8 {[%emt 0:00:30]} 36. Rc3 {[%emt 0:01:00]} ({Less strong is} 36. Rxe6 Rxc4 37. Kg2 Rc5 $14) 36... Kf7 {[%emt 0:02:37]} 37. c5 {[%emt 0:00:41]} Ke7 {[%emt 0:00:40]} 38. Kg2 {[%emt 0:00:39]} Kd7 $2 {[%emt 0:00:20]} (38... e5 {is a better defense.} 39. Kf3 Rb8) 39. Ra3 {[%emt 0:00:26]} Rxc5 {[%emt 0:01:45]} 40. Rxa7+ {[%emt 0:00:30]} Kd6 {[%emt 0:00:30]} 41. b6 {[%emt 0:00:30]} h5 {[%emt 0:01:44]} 42. Rg7 {[%emt 0:00:29]} hxg4 {[%emt 0:00:35]} (42... Rb5 $142 43. b7 (43. Rxg6 hxg4 44. hxg4 Rxb6 $16) 43... hxg4) 43. hxg4 {[%emt 0:00:30]} ({Worse is} 43. Rxg6 gxh3+ 44. Kxh3 Rb5 $11) 43... Rb5 {[%emt 0:01:12]} 44. b7 {[%emt 0:00:00]} Ke5 {[%emt 0:00:31]} 45. Rxg6 {[%emt 0:00:56] Threatening mate with Rg5+.} Rxb7 {[%emt 0:00:05]} 46. Kg3 {[%emt 0:00:18]} Rb3+ {[%emt 0:00:20]} 47. f3 {[%emt 0:00:26]} Ra3 {[%emt 0:00:43]} 48. Rg5+ $2 {[%emt 0:01:04]} (48. Rh6 $18 {and the rest is easy. aiming for g5.} Kd6 49. Rf6) 48... Kf6 $16 {[%emt 0:00:00]} 49. Rb5 {[%emt 0:00:33]} Rc3 {[%emt 0:00:06]} 50. Kf4 {[%emt 0:00:31]} Rc4+ {[%emt 0:00:08]} 51. Ke3 $1 {[%emt 0:00:30]} Rc3+ {[%emt 0:00:00]} 52. Ke4 {[%emt 0:00:00]} Rc4+ {[%emt 0:00:21] [#]} 53. Kd3 $1 {[%emt 0:00:22]} Ra4 {[%emt 0:00:00]} 54. Rc5 {[%emt 0:00:00]} Rf4 {[%emt 0:00:06]} 55. Ke3 {[%emt 0:00:39]} Ra4 {[%emt 0:00:04]} 56. f4 {[%emt 0:00:34]} Ra3+ {[%emt 0:00:30]} 57. Kd4 {[%emt 0:00:30]} Ra4+ {[%emt 0:00:30] [#]} 58. Rc4 $1 {[%emt 0:00:07]} Ra1 {[%emt 0:00:52]} 59. Ke4 {[%emt 0:01:37]} Re1+ {[%emt 0:00:36]} 60. Kf3 {[%emt 0:00:11]} Rf1+ {[%emt 0:00:00]} 61. Kg2 {[%emt 0:00:21]} Ra1 {[%emt 0:00:42]} 62. Rc6 {[%emt 0:00:08]} Ra3 {[%emt 0:01:46]} 63. f5 {[%emt 0:01:13]} (63. Rc5 $16) 63... Kg5 $11 {[%emt 0:00:03][%csl LRf5,LRg4]} 64. Rxe6 {[%emt 0:00:38] Strongly threatening Rg6+.} Kxg4 {[%emt 0:00:04] Weighted Error Value: White=0.36/Black=0.31.  Mistake:       	White=3     	Black=9      Inaccurate:     	White=4     	Black=2      OK:         	White=26    	Black=17     Best:        	White=3     	Black=3      Strong:       	White=3     	---} 1/2-1/2

[Event "Turkish Youth Teams U18 2024"]
[Site "Karaman"]
[Date "2024.04.23"]
[Round "5"]
[White "Cicek, Bilal Emre"]
[Black "Ilgaz, Yusuf Kerem"]
[Result "0-1"]
[ECO "A14"]
[WhiteElo "1830"]
[BlackElo "1957"]
[Annotator "TA"]
[PlyCount "85"]
[EventDate "2024.04.21"]
[EventType "team-tourn"]
[EventCountry "TUR"]
[SourceTitle "playchess.com"]
[Source "ChessBase"]
[SourceQuality "1"]
[TimeControl "5400+30"]

{[%evp 19,85,0,24,4,60,0,0,0,0,-45,0,0,0,0,0,0,0,0,0,0,6,3,0,-12,-8,-17,0,0,0,-25,-25,-108,-99,-145,-153,-144,-147,-151,-141,-164,-158,-161,-155,-210,-191,-410,-646,-650,-409,-425,-411,-422,-409,-773,-701,-789,-785,-818,-793,-1166,-1143,-1214,-1110,-1483,-1234,-1383,-1099,-1020]} 1. c4 {[%emt 0:01:00]} e6 {[%emt 0:04:00]} 2. g3 {[%emt 0:00:30]} d5 {[%emt 0:00:30]} 3. Bg2 {[%emt 0:00:00]} Nf6 {[%emt 0:00:00]} 4. Nf3 {[%emt 0:00:00]} Be7 {[%emt 0:00:00]} 5. O-O {[%emt 0:00:00]} O-O {[%emt 0:00:00]} 6. b3 {[%emt 0:00:00]} c5 {[%emt 0:00:00]} 7. Bb2 {[%emt 0:00:00]} Nc6 {[%emt 0:00:30]} 8. e3 {[%emt 0:00:00]} d4 {[%emt 0:03:30]} 9. exd4 {[%emt 0:00:00]} cxd4 {[%emt 0:00:30]} 10. Re1 {[%emt 0:00:00]} Bc5 {[%emt 0:03:30]} 11. Ne5 {[%emt 0:00:00]} Qc7 {[%emt 0:04:30]} (11... Nxe5 $11 12. Rxe5 Nd7) 12. Nxc6 {[%emt 0:03:00]} (12. Nd3 $14 Be7 13. Na3) 12... bxc6 $11 {[%emt 0:00:30]} 13. b4 {[%emt 0:03:30] The position is equal.} Rb8 {[%emt 0:14:30]} 14. Qc1 {[%emt 0:08:30]} Qb6 {[%emt 0:03:30]} 15. bxc5 {[%emt 0:05:30]} Qxb2 {[%emt 0:00:30]} 16. Qxb2 {[%emt 0:00:30]} Rxb2 {[%emt 0:00:30]} 17. Bxc6 {[%emt 0:00:00]} Ba6 {[%emt 0:01:30]} 18. Na3 {[%emt 0:16:00]} Rc8 $1 {[%emt 0:12:30]} (18... Rxd2 19. Red1 Rxd1+ 20. Rxd1 $15) 19. Bb5 {[%emt 0:00:30]} Bb7 {[%emt 0:00:30] [#]} 20. c6 {[%emt 0:00:30]} Bxc6 {[%emt 0:13:30]} 21. Bxc6 {[%emt 0:00:30]} Rxc6 {[%emt 0:00:30]} 22. Rab1 {[%emt 0:00:30]} Rxb1 {[%emt 0:00:30]} (22... Rxa2 23. Rb8+) 23. Rxb1 {[%emt 0:00:30][%mdl 4096] Endgame. White wants to mate with Rb8+. KRN-KRN} g5 {[%emt 0:00:30]} 24. Rb8+ {[%emt 0:02:30]} Kg7 {[%emt 0:00:00]} 25. Rb7 {[%emt 0:03:30] [#]} (25. Kf1 $11 {remains equal.}) 25... Ne4 $1 $17 {[%emt 0:06:00] Black continues to play with concentration.} 26. d3 {[%emt 0:00:30]} ({Better is} 26. Rb2) 26... Nc5 {[%emt 0:00:30][%csl LRb7,LRd3]} 27. Rxa7 {[%emt 0:00:30]} Nxd3 {[%emt 0:00:30]} 28. Kf1 {[%emt 0:05:30]} Nb2 {[%emt 0:03:30][%cal Og5g4]} 29. Ra5 {[%emt 0:04:30]} Kf6 {[%emt 0:00:30][%cal Og5g4]} (29... Nxc4 30. Nxc4 Rxc4 31. Rxg5+ Kf6 32. Rg4 $17) 30. Ke2 {[%emt 0:03:30]} e5 {[%emt 0:04:30][%cal Og5g4]} 31. c5 {[%emt 0:02:30]} (31. g4 $17 {might work better.}) 31... Ke6 $19 {[%emt 0:01:30]} 32. Nb5 $2 {[%emt 0:05:30]} (32. Kd2 {was called for.} Kd5 33. Kc2) 32... d3+ {[%emt 0:02:30]} (32... Rxc5 33. Nxd4+ Kd5 34. Rxc5+ Kxc5 35. Nf5 $16) 33. Kf3 {[%emt 0:02:30]} d2 {[%emt 0:00:30]} 34. Nc3 {[%emt 0:00:30]} d1=Q+ {[%emt 0:00:30]} 35. Nxd1 {[%emt 0:00:30]} Nxd1 {[%emt 0:00:30] KRN-KR} 36. Kg4 {[%emt 0:00:30]} (36. Ke2 $142 Nb2 37. h3) 36... Nxf2+ {[%emt 0:06:05] Black is clearly winning.} 37. Kxg5 {[%emt 0:00:30]} Ne4+ {[%emt 0:00:30]} 38. Kh6 {[%emt 0:00:30]} Nxc5 {[%emt 0:01:04]} 39. Ra8 {[%emt 0:00:30]} Kf5+ {[%emt 0:02:28]} 40. Kxh7 {[%emt 0:00:30]} e4 {[%emt 0:00:30]} 41. Ra3 {[%emt 0:00:30]} Nd3 {[%emt 0:00:06][%cal Oe4e3] Threatens to win with ...e3!} 42. Ra5+ {[%emt 0:00:30]} Kg4 {[%emt 0:02:05] ...e3 is the strong threat.} 43. Rd5 {[%emt 0:23:04] Weighted Error Value: White=0.65/Black=0.29 (precise) .  Mistake:       	White=6     	Black=1      Inaccurate:     	White=1     	Black=2      OK:         	White=8     	Black=6      Best:        	White=2     	Black=3      Strong:       	---       	Black=2} 0-1